Workbook

Sheet Instructions
A1: How to use the Seed Calculator:
A3: Our latest seed calculator has many useful features, including suggested seeding rates and macro buttons to filter content.
A5: 1) Enable Content
A6: 2) Enter seeding rates in column D.
A7: If you are creating a mixture from scratch, please note that this calculator will provide you with the seeding rate information for each species you enter. The “PLS Pounds per Sq Ft” column in the calculator will tell you how many pure live seeds (PLS) will be planted in 1 square foot of ground over the entire acre. For your entire mixture, the PLS Pounds per Sq Ft rate should be between 15 and 30. Rates that are higher than 30 seeds per square foot of ground are excessive and will generally not establish any quicker or produce quality wildlife habitat.
A8: 3) Get a quote or place a seed order
A9: Submit this file by email to our grass seed specialist (asnelson@pheasantsforever.org) if you would like a quote or to place an order. You will be contacted within two business days. Orders will not be processed, unless otherwise noted prior to price quote.
A11: Good luck designing your next wildlife habitat mixture! If you have any questions please call 844-SEED-NOW for assistance.

Sheet Seed Calculator
A1: Pheasants Forever & Quail Forever
N2: Hide these columns for PF Staff Version necessary for formulas but not to see
A3: Seed Mixture Calculator
A4: 43101
A6: Species | B6: Scientific Name | C6: Suggested Seeding Rates | D6: PLS lbs per acre | E6: PLS seeds per sq ft | F6: % of Mixture PLS | G6: MLRA | H6: Soil Type | I6: Introduced or Native | J6: Comments | K6: COC | L6: Bloom Period | M6: Pollinator Value | N6: Seeds per PLS lb2 | O6: PLS seeds per sq ft at 1 lb/ac | P6: Seed Info Source | Q6: Local Ecotype | R6: Type
A7: Species | B7: Scientific Name | C7: Suggested Seeding Rates | D7: PLS lbs per acre | E7: PLS seeds per sq ft | F7: % of Mixture PLS | G7: MLRA | H7: Soil Type | I7: Introduced or Native | J7: Comments | K7: COC | L7: Bloom Period | M7: Pollinator Value | N7: Seeds per PLS lb2 | O7: PLS seeds per sq ft at 1 lb/ac | P7: Seed Info Source | Q7: Local Ecotype | R7: Type
A8: Alkali Sacaton | B8: Sporobolus airoides | C8: -- | E8: =D8*O8 -> 0 | F8: =Table1[[#This Row],[PLS seeds per sq ft]]/$E$260 ->  | K8: -- | L8: -- | M8: -- | N8: 1750000 | O8: =N8/43560 -> 40.17447199 | P8: NRCS | R8: 1Grass
A9: Annual Ryegrass | B9: Latium multifortum | C9: -- | E9: 0 | F9: =Table1[[#This Row],[PLS seeds per sq ft]]/$E$260 ->  | K9: -- | L9: -- | M9: -- | O9: =N9/43560 -> 0 | R9: 1Grass
A10: Basin Wildrye | B10: Leymus cinereus | C10: -- | E10: 0 | F10: =Table1[[#This Row],[PLS seeds per sq ft]]/$E$260 ->  | K10: -- | L10: -- | M10: -- | N10: 144000 | O10: =N10/43560 -> 3.305785124 | P10: Lab Test | R10: 1Grass
A11: Big Bluestem, Bison | B11: Andropogon gerardii | C11: -- | E11: 0 | F11: =Table1[[#This Row],[PLS seeds per sq ft]]/$E$260 ->  | K11: 5 | L11: -- | M11: -- | N11: 144240 | O11: 3.311294766 | P11: NRCS | R11: 1Grass
A12: Big Bluestem, Bonilla | B12: Andropogon gerardii | C12: -- | E12: 0 | F12: =Table1[[#This Row],[PLS seeds per sq ft]]/$E$260 ->  | K12: 5 | L12: -- | M12: -- | N12: 144240 | O12: 3.311294766 | P12: NRCS | R12: 1Grass
A13: Big Bluestem, Kaw | B13: Andropogon gerardii | C13: -- | E13: 0 | F13: =Table1[[#This Row],[PLS seeds per sq ft]]/$E$260 ->  | K13: 5 | L13: -- | M13: -- | N13: 144240 | O13: 3.311294766 | P13: NRCS | R13: 1Grass
A14: Big Bluestem, Pawnee | B14: Andropogon gerardii | C14: -- | E14: 0 | F14: =Table1[[#This Row],[PLS seeds per sq ft]]/$E$260 ->  | K14: 5 | L14: -- | M14: -- | N14: 144240 | O14: 3.311294766 | P14: NRCS | R14: 1Grass
A15: Big Bluestem, Roundtree | B15: Andropogon gerardii | C15: -- | E15: 0 | F15: =Table1[[#This Row],[PLS seeds per sq ft]]/$E$260 ->  | K15: 5 | L15: -- | M15: -- | N15: 144240 | O15: 3.311294766 | P15: NRCS | R15: 1Grass
A16: Big Bluestem, VNS | B16: Andropogon gerardii | C16: -- | E16: 0 | F16: =Table1[[#This Row],[PLS seeds per sq ft]]/$E$260 ->  | K16: 5 | L16: -- | M16: -- | N16: 144240 | O16: 3.311294766 | P16: NRCS | R16: 1Grass
A17: Blue Grama, Bad River | B17: Bouteloua gracilis | C17: -- | E17: 0 | F17: =Table1[[#This Row],[PLS seeds per sq ft]]/$E$260 ->  | K17: 4 | L17: -- | M17: -- | N17: 724400 | O17: 16.62993572 | P17: NRCS | R17: 1Grass
A18: Blue Grama, Hachita | B18: Bouteloua gracilis | C18: -- | E18: 0 | F18: =Table1[[#This Row],[PLS seeds per sq ft]]/$E$260 ->  | K18: 4 | L18: -- | M18: -- | N18: 724400 | O18: 16.62993572 | P18: NRCS | R18: 1Grass
A19: Blue Grama, VNS | B19: Bouteloua gracilis | C19: -- | E19: 0 | F19: =Table1[[#This Row],[PLS seeds per sq ft]]/$E$260 ->  | K19: 4 | L19: -- | M19: -- | N19: 724400 | O19: 16.62993572 | P19: NRCS | R19: 1Grass
A20: Broom Sedge | B20: Andropogon virginicus | C20: -- | E20: 0 | F20: =Table1[[#This Row],[PLS seeds per sq ft]]/$E$260 ->  | O20: 0 | R20: 1Grass
A21: Buffalograss, Texoka | B21: Buchloe dactyloides | C21: -- | E21: 0 | F21: =Table1[[#This Row],[PLS seeds per sq ft]]/$E$260 ->  | K21: -- | L21: -- | M21: -- | N21: 57600 | O21: 1.32231405 | P21: PMN | R21: 1Grass
A22: Canada Blue Jointgrass | B22: Calamagrostis canadensis | C22: -- | E22: 0 | F22: =Table1[[#This Row],[PLS seeds per sq ft]]/$E$260 ->  | K22: 6 | L22: -- | M22: -- | N22: 3837472 | O22: 88.09623508 | P22: NRCS | R22: 1Grass
A23: Canada Wildrye | B23: Elymus canadensis | C23: -- | E23: 0 | F23: =Table1[[#This Row],[PLS seeds per sq ft]]/$E$260 ->  | K23: 5 | L23: -- | M23: -- | N23: 114000 | O23: 2.61707989 | P23: NRCS | R23: 1Grass
A24: Crested Wheatgrass | B24: Agropyron cristatum | C24: -- | E24: 0 | F24: =Table1[[#This Row],[PLS seeds per sq ft]]/$E$260 ->  | K24: -- | L24: -- | M24: -- | N24: 311200 | O24: 7.144168962 | P24: NRCS | R24: 1Grass
A25: Deertongue | B25: Panicum clanestinum | C25: -- | E25: 0 | F25: =Table1[[#This Row],[PLS seeds per sq ft]]/$E$260 ->  | O25: 0 | R25: 1Grass
A26: Eastern Gamagrass | B26: Tripsacum dactyloides | C26: -- | E26: 0 | F26: =Table1[[#This Row],[PLS seeds per sq ft]]/$E$260 ->  | K26: 7 | L26: -- | M26: -- | N26: 7200 | O26: 0.1652892562 | P26: NRCS | R26: 1Grass
A27: Fowl Mana Grass | B27: Glyceria striata | C27: -- | E27: 0 | F27: =Table1[[#This Row],[PLS seeds per sq ft]]/$E$260 ->  | K27: 5 | L27: -- | M27: -- | N27: 1540000 | O27: 35.35353535 | P27: Ernst | R27: 1Grass
A28: Fox Sedge | B28: Carex vulpinoidea | C28: -- | E28: 0 | F28: =Table1[[#This Row],[PLS seeds per sq ft]]/$E$260 ->  | K28: 4 | L28: -- | M28: -- | N28: 1440000 | O28: 33.05785124 | P28: Ernst | R28: 1Grass
A29: Fult Salt Grass | B29: Puccinellia distans | C29: -- | E29: 0 | F29: =Table1[[#This Row],[PLS seeds per sq ft]]/$E$260 ->  | O29: 0 | R29: 1Grass
A30: Green Bulrush | B30: Scirpus atrovirens | C30: -- | E30: 0 | F30: =Table1[[#This Row],[PLS seeds per sq ft]]/$E$260 ->  | O30: 0 | R30: 1Grass
A31: Green Needlegrass | B31: Stipa viridula | C31: -- | E31: 0 | F31: =Table1[[#This Row],[PLS seeds per sq ft]]/$E$260 ->  | K31: 4 | L31: -- | M31: -- | N31: 167840 | O31: 3.853076217 | P31: NRCS | R31: 1Grass
A32: Indiangrass, Cheyenne | B32: Sorghastrum nutans | C32: -- | E32: 0 | F32: =Table1[[#This Row],[PLS seeds per sq ft]]/$E$260 ->  | K32: 5 | L32: -- | M32: -- | N32: 174720 | O32: 4.011019284 | P32: NRCS | R32: 1Grass
A33: Indiangrass, Kansas Source | B33: Sorghastrum nutans | C33: -- | E33: 0 | F33: =Table1[[#This Row],[PLS seeds per sq ft]]/$E$260 ->  | K33: 5 | L33: -- | M33: -- | N33: 174720 | O33: 4.011019284 | P33: NRCS | R33: 1Grass
A34: Indiangrass, Osage | B34: Sorghastrum nutans | C34: -- | E34: 0 | F34: =Table1[[#This Row],[PLS seeds per sq ft]]/$E$260 ->  | K34: 5 | L34: -- | M34: -- | N34: 174720 | O34: 4.011019284 | P34: NRCS | R34: 1Grass
A35: Indiangrass, Tomahawk | B35: Sorghastrum nutans | C35: -- | E35: 0 | F35: =Table1[[#This Row],[PLS seeds per sq ft]]/$E$260 ->  | K35: 5 | L35: -- | M35: -- | N35: 174720 | O35: 4.011019284 | P35: NRCS | R35: 1Grass
A36: Indiangrass, VNS | B36: Sorghastrum nutans | C36: -- | E36: 0 | F36: =Table1[[#This Row],[PLS seeds per sq ft]]/$E$260 ->  | K36: 5 | L36: -- | M36: -- | N36: 174720 | O36: 4.011019284 | P36: NRCS | R36: 1Grass
A37: Intermediate Wheatgrass | B37: Elymus hispidus | C37: -- | E37: 0 | F37: =Table1[[#This Row],[PLS seeds per sq ft]]/$E$260 ->  | K37: -- | L37: -- | M37: -- | N37: 80080 | O37: 1.838383838 | P37: NRCS | R37: 1Grass
A38: Lance-Fruit Oval Sedge | B38: Carex scoparia | C38: -- | E38: 0 | F38: =Table1[[#This Row],[PLS seeds per sq ft]]/$E$260 ->  | K38: 5 | L38: -- | M38: -- | N38: 1344000 | O38: 30.85399449 | P38: Ernst | R38: 1Grass
A39: Little Bluestem, Aldous | B39: Schizachyrium scoparium | C39: -- | E39: 0 | F39: =Table1[[#This Row],[PLS seeds per sq ft]]/$E$260 ->  | K39: 4 | L39: -- | M39: -- | N39: 240670 | O39: 5.525022957 | P39: NRCS | R39: 1Grass
A40: Little Bluestem, Camper | B40: Schizachyrium scoparium | C40: -- | E40: 0 | F40: =Table1[[#This Row],[PLS seeds per sq ft]]/$E$260 ->  | K40: 4 | L40: -- | M40: -- | N40: 240670 | O40: 5.525022957 | P40: NRCS | R40: 1Grass
A41: Little Bluestem, Cimarron | B41: Schizachyrium scoparium | C41: -- | E41: 0 | F41: =Table1[[#This Row],[PLS seeds per sq ft]]/$E$260 ->  | K41: 4 | L41: -- | M41: -- | N41: 240670 | O41: 5.525022957 | P41: NRCS | R41: 1Grass
A42: Little Bluestem, Itasca | B42: Schizachyrium scoparium | C42: -- | E42: 0 | F42: =Table1[[#This Row],[PLS seeds per sq ft]]/$E$260 ->  | K42: 4 | L42: -- | M42: -- | N42: 240670 | O42: 5.525022957 | P42: NRCS | R42: 1Grass
A43: Little Bluestem, VNS | B43: Schizachyrium scoparium | C43: -- | E43: 0 | F43: =Table1[[#This Row],[PLS seeds per sq ft]]/$E$260 ->  | K43: 4 | L43: -- | M43: -- | N43: 240670 | O43: 5.525022957 | R43: 1Grass
A44: Meadow Bromegrass | B44: Bromus biebersteinii | C44: -- | E44: 0 | F44: =Table1[[#This Row],[PLS seeds per sq ft]]/$E$260 ->  | K44: -- | L44: -- | M44: -- | N44: 86875 | O44: 1.994375574 | P44: NRCS | R44: 1Grass
A45: Needle & Thread | B45: Stipa comata | C45: -- | E45: 0 | F45: =Table1[[#This Row],[PLS seeds per sq ft]]/$E$260 ->  | K45: 6 | L45: -- | M45: -- | N45: 137857 | O45: 3.164761249 | P45: NRCS | R45: 1Grass
A46: Orchardgrass | B46: Dactylis glomerata | C46: -- | E46: 0 | F46: =Table1[[#This Row],[PLS seeds per sq ft]]/$E$260 ->  | K46: -- | L46: -- | M46: -- | N46: 427200 | O46: 9.807162534 | P46: NRCS | R46: 1Grass
A47: Perennial Ryegrass | B47: Lolium perenne var. perenne | C47: -- | E47: 0 | F47: =Table1[[#This Row],[PLS seeds per sq ft]]/$E$260 ->  | K47: -- | L47: -- | M47: -- | N47: 240400 | O47: 5.51882461 | P47: NRCS | R47: 1Grass
A48: Porcupine Grass, Nebraska Source | B48: Stipa spartea | C48: -- | E48: 0 | F48: =Table1[[#This Row],[PLS seeds per sq ft]]/$E$260 ->  | K48: 6 | L48: -- | M48: -- | N48: 34112 | O48: 0.7831037649 | P48: Lab Test | Q48: Local Ecotype | R48: 1Grass
A49: Prairie Cordgrass | B49: Spartina pectinata | C49: -- | E49: 0 | F49: =Table1[[#This Row],[PLS seeds per sq ft]]/$E$260 ->  | K49: 5 | L49: -- | M49: -- | N49: 638863 | O49: 14.6662764 | P49: NRCS | R49: 1Grass
A50: Prairie Dropseed | B50: Sporobolus heterolepis | C50: -- | E50: 0 | F50: =Table1[[#This Row],[PLS seeds per sq ft]]/$E$260 ->  | K50: 7 | L50: -- | M50: -- | N50: 256000 | O50: 5.876951331 | P50: PMN | R50: 1Grass
A51: Prairie Junegrass | B51: Koeleria pyramidata | C51: -- | E51: 0 | F51: =Table1[[#This Row],[PLS seeds per sq ft]]/$E$260 ->  | K51: 6 | L51: -- | M51: -- | N51: 2315000 | O51: 53.14508724 | P51: NRCS | R51: 1Grass
A52: Prairie Sandreed | B52: Calamovilfa longifolia | C52: -- | E52: 0 | F52: =Table1[[#This Row],[PLS seeds per sq ft]]/$E$260 ->  | K52: 5 | L52: -- | M52: -- | N52: 274000 | O52: 6.290174472 | P52: NRCS | R52: 1Grass
A53: Pubescent Wheatgrass | B53: Agropyron intermedium var. trichophorum | C53: -- | E53: 0 | F53: =Table1[[#This Row],[PLS seeds per sq ft]]/$E$260 ->  | K53: -- | L53: -- | M53: -- | N53: 80080 | O53: 1.838383838 | P53: NRCS | R53: 1Grass
A54: Purple Top | B54: Tridens flavus | C54: -- | E54: 0 | F54: =Table1[[#This Row],[PLS seeds per sq ft]]/$E$260 ->  | K54: 1 | L54: -- | M54: -- | N54: 465000 | O54: 10.67493113 | P54: Ernst | R54: 1Grass
A55: Redtop | B55: Agrostis stolonifera | C55: -- | E55: 0 | F55: =Table1[[#This Row],[PLS seeds per sq ft]]/$E$260 ->  | K55: -- | L55: -- | M55: -- | N55: 4990000 | O55: 114.5546373 | R55: 1Grass
A56: Rice Cut Grass | B56: Leersia hexandra | C56: -- | E56: 0 | F56: =Table1[[#This Row],[PLS seeds per sq ft]]/$E$260 ->  | K56: -- | L56: -- | M56: -- | N56: 610000 | O56: 14.00367309 | P56: Ernst | R56: 1Grass
A57: Riverbank Wildrye | B57: Elymus riperius | C57: -- | E57: 0 | F57: =Table1[[#This Row],[PLS seeds per sq ft]]/$E$260 ->  | K57: -- | L57: -- | M57: -- | N57: 125000 | O57: 2.869605142 | P57: Ernst | R57: 1Grass
A58: Rough or Tall Dropseed | B58: Sporobolus clandestinus | C58: -- | E58: 0 | F58: =Table1[[#This Row],[PLS seeds per sq ft]]/$E$260 ->  | K58: 3 | L58: -- | M58: -- | N58: 480000 | O58: 11.01928375 | P58: IA NRCS | R58: 1Grass
A59: Sand Bluestem, Champ | B59: Andropogon hallii | C59: -- | E59: 0 | F59: =Table1[[#This Row],[PLS seeds per sq ft]]/$E$260 ->  | K59: 5 | L59: -- | M59: -- | N59: 96640 | O59: 2.218549128 | R59: 1Grass
A60: Sand Bluestem, Goldstrike | B60: Andropogon hallii | C60: -- | E60: 0 | F60: =Table1[[#This Row],[PLS seeds per sq ft]]/$E$260 ->  | K60: 5 | L60: -- | M60: -- | N60: 96640 | O60: 2.218549128 | P60: NRCS | R60: 1Grass
A61: Sand Dropseed | B61: Sporobolus cryptandrus | C61: -- | E61: 0 | F61: =Table1[[#This Row],[PLS seeds per sq ft]]/$E$260 ->  | K61: 2 | L61: -- | M61: -- | N61: 5600080 | O61: 128.5601469 | P61: NRCS | R61: 1Grass
A62: Sand Lovegrass | B62: Eragrostis trichodes | C62: -- | E62: 0 | F62: =Table1[[#This Row],[PLS seeds per sq ft]]/$E$260 ->  | K62: 5 | L62: -- | M62: -- | N62: 1625680 | O62: 37.3204775 | P62: NRCS | R62: 1Grass
A63: Sideoats Grama, Butte | B63: Bouteloua curtipendula | C63: -- | E63: 0 | F63: =Table1[[#This Row],[PLS seeds per sq ft]]/$E$260 ->  | K63: 5 | L63: -- | M63: -- | N63: 159200 | O63: 3.654729109 | P63: NRCS | R63: 1Grass
A64: Sideoats Grama, El Reno | B64: Bouteloua curtipendula | C64: -- | E64: 0 | F64: =Table1[[#This Row],[PLS seeds per sq ft]]/$E$260 ->  | K64: 5 | L64: -- | M64: -- | N64: 159200 | O64: 3.654729109 | P64: NRCS | R64: 1Grass
A65: Sideoats Grama, Trailway | B65: Bouteloua curtipendula | C65: -- | E65: 0 | F65: =Table1[[#This Row],[PLS seeds per sq ft]]/$E$260 ->  | K65: 5 | L65: -- | M65: -- | N65: 159200 | O65: 3.654729109 | P65: NRCS | R65: 1Grass
A66: Slender Wheatgrass | B66: Elymus trachycaulus | C66: -- | E66: 0 | F66: =Table1[[#This Row],[PLS seeds per sq ft]]/$E$260 ->  | K66: 7 | L66: -- | M66: -- | N66: 135000 | O66: 3.099173554 | P66: NRCS | R66: 1Grass
A67: Switchgrass, Alamo | B67: Panicum virgatum | C67: -- | E67: 0 | F67: =Table1[[#This Row],[PLS seeds per sq ft]]/$E$260 ->  | K67: 4 | L67: -- | M67: -- | N67: 259000 | O67: 5.945821855 | P67: NRCS | R67: 1Grass
A68: Switchgrass, Blackwell | B68: Panicum virgatum | C68: -- | E68: 0 | F68: =Table1[[#This Row],[PLS seeds per sq ft]]/$E$260 ->  | K68: 4 | L68: -- | M68: -- | N68: 259000 | O68: 5.945821855 | P68: NRCS | R68: 1Grass
A69: Switchgrass, Cave N Rock | B69: Panicum virgatum | C69: -- | E69: 0 | F69: =Table1[[#This Row],[PLS seeds per sq ft]]/$E$260 ->  | K69: 4 | L69: -- | M69: -- | N69: 259000 | O69: 5.945821855 | P69: NRCS | R69: 1Grass
A70: Switchgrass, Forestburg | B70: Panicum virgatum | C70: -- | E70: 0 | F70: =Table1[[#This Row],[PLS seeds per sq ft]]/$E$260 ->  | K70: 4 | L70: -- | M70: -- | N70: 259000 | O70: 5.945821855 | P70: NRCS | R70: 1Grass
A71: Switchgrass, Kan Low | B71: Panicum virgatum | C71: -- | E71: 0 | F71: =Table1[[#This Row],[PLS seeds per sq ft]]/$E$260 ->  | K71: 4 | L71: -- | M71: -- | N71: 259000 | O71: 5.945821855 | P71: NRCS | R71: 1Grass
A72: Switchgrass, Trailblazer | B72: Panicum virgatum | C72: -- | E72: =D72*O72 -> 0 | F72: =Table1[[#This Row],[PLS seeds per sq ft]]/$E$260 ->  | K72: 4 | L72: -- | M72: -- | N72: 259000 | O72: 5.945821855 | P72: NRCS | R72: 1Grass
A73: Tall Wheatgrass | B73: Elymus elongatus | C73: -- | E73: 0 | F73: =Table1[[#This Row],[PLS seeds per sq ft]]/$E$260 ->  | K73: -- | L73: -- | M73: -- | N73: 75320 | O73: 1.729109275 | P73: NRCS | R73: 1Grass
A74: Thickspike Wheatgrass | B74: Elymus lanceolatus | C74: -- | E74: 0 | F74: =Table1[[#This Row],[PLS seeds per sq ft]]/$E$260 ->  | K74: -- | L74: -- | M74: -- | N74: 153000 | O74: =N74/43560 -> 3.512396694 | P74: Lab Test | R74: 1Grass
A75: Timothy | B75: Phleum pratense | C75: -- | E75: 0 | F75: =Table1[[#This Row],[PLS seeds per sq ft]]/$E$260 ->  | K75: -- | L75: -- | M75: -- | N75: 1163200 | O75: 26.70339761 | P75: NRCS | R75: 1Grass
A76: Virginia Wildrye | B76: Elymus virginicus | C76: -- | E76: 0 | F76: =Table1[[#This Row],[PLS seeds per sq ft]]/$E$260 ->  | K76: 4 | L76: -- | M76: -- | N76: 100000 | O76: 2.295684114 | P76: NRCS | R76: 1Grass
A77: Weeping Lovegrass | B77: Eragrostis curvula | C77: -- | E77: 0 | F77: =Table1[[#This Row],[PLS seeds per sq ft]]/$E$260 ->  | K77: -- | L77: -- | M77: -- | N77: 1482320 | O77: 34.02938476 | P77: Lab Test | R77: 1Grass
A78: Western Wheatgrass, Arriba | B78: Elymus smithii | C78: -- | E78: 0 | F78: =Table1[[#This Row],[PLS seeds per sq ft]]/$E$260 ->  | K78: 3 | L78: -- | M78: -- | N78: 113840 | O78: 2.613406795 | P78: NRCS | R78: 1Grass
A79: Western Wheatgrass, Barton | B79: Elymus smithii | C79: -- | E79: 0 | F79: =Table1[[#This Row],[PLS seeds per sq ft]]/$E$260 ->  | K79: 3 | L79: -- | M79: -- | N79: 113840 | O79: 2.613406795 | P79: NRCS | R79: 1Grass
A80: Western Wheatgrass, Rosanna | B80: Elymus smithii | C80: -- | E80: 0 | F80: =Table1[[#This Row],[PLS seeds per sq ft]]/$E$260 ->  | K80: 3 | L80: -- | M80: -- | N80: 113840 | O80: 2.613406795 | P80: NRCS | R80: 1Grass
A81: Alfalfa, Grazer | B81: Medicago spp. | C81: 0.05 - 1.5 | E81: 0 | F81: =Table1[[#This Row],[PLS seeds per sq ft]]/$E$260 ->  | G81: 60A, 63B, 64, 65E, 65W, 66, 67, 71, 72, 73E, 73W, 75, 102C, 106, 107N, 107S | H81: Loamy, Sandy | I81: Introduced | J81: Potentially aggressive if seeded too heavy | K81: 0 | L81: 2 | M81: 5 | N81: 226800 | O81: 5.20661157 | P81: NRCS | R81: 2Forb
A82: Alfalfa, VNS | B82: Medicago spp. | C82: 0.05 - 1.5 | E82: 0 | F82: =Table1[[#This Row],[PLS seeds per sq ft]]/$E$260 ->  | G82: 60A, 63B, 64, 65E, 65W, 66, 67, 71, 72, 73E, 73W, 75, 102C, 106, 107N, 107S | H82: Loamy, Sandy | I82: Introduced | J82: Potentially aggressive if seeded too heavy | K82: 0 | L82: 2 | M82: 5 | N82: 226800 | O82: 5.20661157 | P82: NRCS | R82: 2Forb
A83: Alleghney Monkey Flower | B83: Mimulus ringens | C83: 0.001 - 0.002 | E83: 0 | F83: =Table1[[#This Row],[PLS seeds per sq ft]]/$E$260 ->  | G83: 60A, 63B, 64, 65E, 65W, 66, 67, 71, 72, 73E, 73W, 75, 102C, 106, 107N, 107S | H83: Wet | I83: Native (NE) | J83: Only use on wet soils | K83: 6 | L83: 3 | M83: 3 | N83: 32000000 | O83: 734.6189164 | P83: Lab Test | R83: 2Forb
A84: Alsike Clover | B84: Trifolium hybridum | C84: 0.01 - 0.1 | E84: 0 | F84: =Table1[[#This Row],[PLS seeds per sq ft]]/$E$260 ->  | G84: 63B, 65E, 65W, 66, 73E, 73W, 75, 102C, 106, 107N, 107S | H84: Loamy, Sandy, Wet | I84: Introduced | J84: Potentially aggressive if seeded too heavy | K84: 0 | L84: 2 | M84: 5 | N84: 680400 | O84: 15.61983471 | P84: NRCS | R84: 2Forb
A85: Alumroot | B85: Heuchera richardsonii | C85: 0.001 - 0.005 | E85: 0 | F85: =Table1[[#This Row],[PLS seeds per sq ft]]/$E$260 ->  | G85: 60A, 63B, 64, 65W, 65E, 66, 102C, 107N, 107S | H85: Loamy, Sandy | I85: Native (NE) | K85: 8 | L85: 1 | M85: 2 | N85: =687500*16 -> 11000000 | O85: 252.5252525 | P85: IA NRCS | R85: 2Forb
A86: American Germander | B86: Teucrium canadense | C86: 0.006 - 0.018 | E86: 0 | F86: =Table1[[#This Row],[PLS seeds per sq ft]]/$E$260 ->  | G86: 65E, 65W, 71, 72, 73E, 73W, 75, 102C, 106, 107N, 107S | H86: Wet | I86: Native (NE) | J86: Only use on wet soils | K86: 4 | L86: 2 | M86: 4 | N86: 243347 | O86: 5.586478421 | P86: Lab Test | R86: 2Forb
A87: American Germander, Nebraska Source | B87: Teucrium canadense | C87: 0.01 - 0.08 | E87: 0 | F87: =Table1[[#This Row],[PLS seeds per sq ft]]/$E$260 ->  | G87: 65E, 65W, 71, 72, 73E, 73W, 75, 102C, 106, 107N, 107S | H87: Wet | I87: Native (NE) | J87: Only use on wet soils | K87: 4 | L87: 2 | M87: 4 | N87: 243347 | O87: 5.586478421 | P87: Lab Test | Q87: Local Ecotype | R87: 2Forb
A88: American Vetch | B88: Vicia americana | C88: 0.1 - 0.5 | E88: 0 | F88: =Table1[[#This Row],[PLS seeds per sq ft]]/$E$260 ->  | G88: 60A, 63B, 64, 66, 67, 71, 72, 73E, 73W, 75, 102C, 106, 107N, 107S | H88: Loamy | I88: Native (NE) | J88: Only use on loamy soils | K88: 6 | L88: 1 | M88: 4 | N88: 32833 | O88: 0.7537419651 | P88: NRCS | R88: 2Forb
A89: Annual or Common Sunflower | B89: Helianthus annuus | C89: 0.08 - 0.2 | E89: 0 | F89: =Table1[[#This Row],[PLS seeds per sq ft]]/$E$260 ->  | G89: 60A, 63B, 64, 65E, 65W, 66, 67, 71, 72, 73E, 73W, 75, 102C, 106, 107N, 107S | H89: Loamy, Sandy | I89: Native (NE) | J89: High pollinator value, important fall bloomer, potentially aggressive if seeded too heavy | K89: -- | L89: 3 | M89: 5 | N89: 46919 | O89: 1.077112029 | P89: NRCS | R89: 2Forb
A90: Arkansas Rose, Nebraska Source | B90: Rosa arkansana | C90: 0.01 - 0.05 | E90: 0 | F90: =Table1[[#This Row],[PLS seeds per sq ft]]/$E$260 ->  | G90: 60A, 63B, 64, 65E, 65W, 66, 67, 71, 72, 73E, 73W, 75, 102C, 106, 107N, 107S | H90: Loamy, Sandy | I90: Native (NE) | J90: High pollinator value, important spring bloomer | K90: 4 | L90: 1 | M90: 4 | N90: 40341 | O90: 0.9261019284 | P90: Lab Test | Q90: Local Ecotype | R90: 2Forb
A91: Arrowleaf Clover | B91: Trifolium vesiculosum | C91: 0.04 - 0.4 | E91: 0 | F91: =Table1[[#This Row],[PLS seeds per sq ft]]/$E$260 ->  | G91: 60A, 63B, 64, 65E, 65W, 66, 67, 71, 72, 73E, 73W, 75, 102C, 106, 107N, 107S | H91: Sandy, Loamy | I91: Introduced | J91: Potentially aggressive if seeded too heavy | K91: 0 | L91: 2 | M91: 4 | N91: 399161 | O91: 9.163475666 | P91: NRCS | R91: 2Forb
A92: Ashy Sunflower, Nebraska Source | B92: Helianthus mollis | C92: 0.01 - 0.04 | E92: 0 | F92: =Table1[[#This Row],[PLS seeds per sq ft]]/$E$260 ->  | G92: 106 | H92: Loamy, Sandy | I92: Native (US) | J92: High pollinator value, important fall bloomer, potentially aggressive if seeded too heavy | K92: -- | L92: 3 | M92: 5 | N92: 201777 | O92: 4.632162534 | P92: Lab Test | Q92: Local Ecotype | R92: 2Forb
A93: Baldwin's Ironweed, Nebraska Source | B93: Vernonia baldwinii | C93: 0.008 - 0.03 | E93: 0 | F93: =Table1[[#This Row],[PLS seeds per sq ft]]/$E$260 ->  | G93: 63B, 65E, 71, 72, 73E, 73W, 75, 102C, 106, 107N, 107S | H93: Loamy, Sandy | I93: Native (NE) | K93: 3 | L93: 2 | M93: 5 | N93: 697846 | O93: 16.02033976 | P93: Lab Test | Q93: Local Ecotype | R93: 2Forb
A94: Beggar-ticks | B94: Bidens frondosa | C94: 0.01 - 0.08 | E94: 0 | F94: =Table1[[#This Row],[PLS seeds per sq ft]]/$E$260 ->  | G94: 60A, 63B, 64, 65E, 65W, 66, 67, 71, 72, 73E, 73W, 75, 102C, 106, 107N, 107S | H94: Wet | I94: Native (NE) | J94: Only use on wet soils | K94: 1 | L94: 3 | M94: 3 | N94: 195300 | O94: 4.483471074 | P94: NRCS | R94: 2Forb
A95: Berseem or Egyptian Clover | B95: Trifolium alexandrinum | C95: 0.04 - 0.5 | E95: 0 | F95: =Table1[[#This Row],[PLS seeds per sq ft]]/$E$260 ->  | G95: 60A, 63B, 64, 65E, 65W, 66, 67, 71, 72, 73E, 73W, 75, 102C, 106, 107N, 107S | H95: Loamy | I95: Introduced | J95: Potentially aggressive if seeded too heavy | K95: 0 | L95: 2 | M95: 4 | N95: 206880 | O95: 4.749311295 | R95: 2Forb
A96: Birdsfoot Trefoil | B96: Lotus corniculatus | C96: 0.1 - 0.8 | E96: 0 | F96: =Table1[[#This Row],[PLS seeds per sq ft]]/$E$260 ->  | K96: 0 | L96: 2 | M96: 5 | N96: 369840 | O96: 8.490358127 | P96: NRCS | R96: 2Forb
A97: Blackeyed Susan | B97: Rudbeckia hirta | C97: 0.01 - 0.1 | E97: 0 | F97: =Table1[[#This Row],[PLS seeds per sq ft]]/$E$260 ->  | G97: 60A, 63B, 64, 65E, 65W, 66, 67, 71, 72, 73E, 73W, 75, 102C, 106, 107N, 107S | H97: Loamy, Sandy | I97: Native (NE) | K97: 3 | L97: 2 | M97: 1 | N97: 1575760 | O97: 36.17447199 | P97: NRCS | R97: 2Forb
A98: Blacksamson, Nebraska Source | B98: Echinacea angustifolia | C98: 0.01 - 0.08 | E98: 0 | F98: =Table1[[#This Row],[PLS seeds per sq ft]]/$E$260 ->  | G98: 60A, 63B, 64, 65E, 65W, 66, 67, 71, 72, 73E, 73W, 75 | H98: Loamy, Sandy | I98: Native (NE) | K98: 5 | L98: 2 | M98: 5 | N98: 251942 | O98: 5.78379247 | P98: Lab Test | Q98: Local Ecotype | R98: 2Forb
A99: Blanketflower (Indian Blanket) | B99: Gaillardia aristata | C99: 0.04 - 0.2 | E99: 0 | F99: =Table1[[#This Row],[PLS seeds per sq ft]]/$E$260 ->  | G99: 60A, 63B, 64, 65E, 65W, 66, 67, 71, 72, 73E, 73W, 75, 102C, 106, 107N, 107S | H99: Loamy, Sandy | I99: Native (US) | J99: Introduced non-aggressive species | K99: 5 | L99: 1 | M99: 4 | N99: 186436 | O99: 4.279981635 | P99: NRCS | R99: 2Forb
A100: Blanketflower (Indian Blanket) | B100: Gaillardia pulchella | C100: 0.04 - 0.2 | E100: 0 | F100: =Table1[[#This Row],[PLS seeds per sq ft]]/$E$260 ->  | G100: 60A, 63B, 64, 65E, 65W, 66, 67, 71, 72, 73E, 73W, 75, 102C, 106, 107N, 107S | H100: Loamy, Sandy | I100: Native (US) | J100: Introduced non-aggressive species | K100: 5 | L100: 1 | M100: 4 | N100: 186436 | O100: 4.279981635 | P100: NRCS | R100: 2Forb
A101: Blue False Indigo | B101: Baptisia australis | E101: 0 | F101: =Table1[[#This Row],[PLS seeds per sq ft]]/$E$260 ->  | O101: 0 | R101: 2Forb
A102: Blue Flag Iris | B102: Iris virginica shrevei | C102: 0.01 - 0.03 | E102: 0 | F102: =Table1[[#This Row],[PLS seeds per sq ft]]/$E$260 ->  | G102: 107 | H102: Wet | I102: Native (NE) | J102: Only use on wet soils | K102: 6 | L102: 2 | M102: 3 | N102: =1000*16 -> 16000 | O102: 0.3673094582 | P102: IA NRCS | R102: 2Forb
A103: Blue Flax | B103: Linum lewisii | C103: 0.05 - 0.15 | E103: 0 | F103: =Table1[[#This Row],[PLS seeds per sq ft]]/$E$260 ->  | G103: 60A, 63B, 64, 65E, 65W, 66, 67, 71, 72, 73E, 73W, 75, 102C, 106, 107N, 107S | H103: Loamy, Sandy | I103: Native (NE) | K103: 0 | L103: 2 | M103: 2 | N103: 294848 | O103: 6.768778696 | P103: NRCS | R103: 2Forb
A104: Blue Lobelia | B104: Lobelia siphilitica | C104: 0.001 - 0.01 | E104: 0 | F104: =Table1[[#This Row],[PLS seeds per sq ft]]/$E$260 ->  | G104: 60A, 63B, 64, 65E, 65W, 66, 67, 71, 72, 73E, 73W, 75, 102C, 106, 107N, 107S | H104: Wet | I104: Native (NE) | J104: Only use on wet soils | K104: 6 | L104: 2 | M104: 3 | N104: 7608000 | O104: 174.6556474 | P104: IA NRCS | R104: 2Forb
A105: Blue Vervain | B105: Verbena hastata | C105: 0.008 - 0.03 | E105: 0 | F105: =Table1[[#This Row],[PLS seeds per sq ft]]/$E$260 ->  | G105: 60A, 63B, 64, 65E, 65W, 66, 67, 71, 72, 73E, 73W, 75, 102C, 106, 107N, 107S | H105: Wet | I105: Native (NE) | J105: Only use on wet soils | K105: 4 | L105: 2 | M105: 5 | N105: 1503315 | O105: 34.51136364 | P105: Lab Test | R105: 2Forb
A106: Blue Vervain, Nebraska Source | B106: Verbena hastata | C106: 0.008 - 0.03 | E106: 0 | F106: =Table1[[#This Row],[PLS seeds per sq ft]]/$E$260 ->  | G106: 60A, 63B, 64, 65E, 65W, 66, 67, 71, 72, 73E, 73W, 75, 102C, 106, 107N, 107S | H106: Wet | I106: Native (NE) | J106: Only use on wet soils | K106: 4 | L106: 2 | M106: 5 | N106: 1503315 | O106: 34.51136364 | P106: Lab Test | Q106: Local Ecotype | R106: 2Forb
A107: Boneset | B107: Eupatorium perfoliatum | C107: 0.005 - 0.01 | E107: 0 | F107: =Table1[[#This Row],[PLS seeds per sq ft]]/$E$260 ->  | G107: 60A, 63B, 64, 65E, 65W, 66, 67, 71, 72, 73E, 73W, 75, 102C, 106, 107N, 107S | H107: Wet | I107: Native (NE) | J107: Only use on wet soils | K107: 5 | L107: 3 | M107: 2 | N107: 2986842 | O107: 68.5684573 | P107: Lab Test | R107: 2Forb
A108: Brown-eyed Susan | B108: Rudbeckia triloba | C108: 0.01 - 0.08 | E108: 0 | F108: =Table1[[#This Row],[PLS seeds per sq ft]]/$E$260 ->  | G108: 73E, 73W, 75, 106 | H108: Loamy, Sandy | I108: Native (NE) | K108: -- | L108: 2 | M108: 1 | N108: 544000 | O108: 12.48852158 | P108: PMN | R108: 2Forb
A109: Buckwheat | B109: Fagopyrum esculentum | C109: 1.0 - 10.0 | E109: 0 | F109: =Table1[[#This Row],[PLS seeds per sq ft]]/$E$260 ->  | K109: -- | L109: 2 | M109: 4 | N109: 14600 | O109: 0.3351698806 | R109: 2Forb
A110: Bush Morning Glory, Nebraska Source | B110: Ipomoea leptophylia | C110: 0.01 - 0.04 | E110: 0 | F110: =Table1[[#This Row],[PLS seeds per sq ft]]/$E$260 ->  | G110: 60A, 63B, 64, 65E, 65W, 66, 67, 71, 72, 73E, 73W | H110: Loamy, Sandy | I110: Native (NE) | K110: -- | L110: 2 | M110: 3 | N110: 3863 | O110: 0.08868227732 | P110: Lab Test | Q110: Local Ecotype | R110: 2Forb
A111: Butterfly Milkweed | B111: Asclepias tuberosa | C111: 0.01 - 0.03 | E111: 0 | F111: =Table1[[#This Row],[PLS seeds per sq ft]]/$E$260 ->  | G111: 71, 75, 102C, 106, 107N, 107S | H111: Loamy | I111: Native (NE) | J111: Native milkweed, mid level pollinator value, only use on loamy soils | K111: 6 | L111: 2 | M111: 5 | N111: 70000 | O111: 1.60697888 | P111: NRCS | R111: 2Forb
A112: Butterfly Milkweed, Nebraska Source | B112: Asclepias tuberosa | C112: 0.01 - 0.03 | E112: 0 | F112: =Table1[[#This Row],[PLS seeds per sq ft]]/$E$260 ->  | G112: 71, 75, 102C, 106, 107N, 107S | H112: Loamy | I112: Native (NE) | J112: Native milkweed, mid level pollinator value, only use on loamy soils | K112: 6 | L112: 2 | M112: 5 | N112: 70000 | O112: 1.60697888 | P112: NRCS | Q112: Local Ecotype | R112: 2Forb
A113: Canada Goldenrod, Nebraska Source | B113: Solidago canadensis | C113: 0.001 - 0.005 | E113: 0 | F113: =Table1[[#This Row],[PLS seeds per sq ft]]/$E$260 ->  | G113: 60A, 63B, 64, 65E, 65W, 66, 67, 71, 72, 73E, 73W, 75, 102C, 106, 107N, 107S | H113: Loamy, Sandy, Wet | I113: Native (NE) | J113: Potentially aggressive if seeded too heavy | K113: 2 | L113: 2 | M113: 5 | N113: 7087500 | O113: 162.7066116 | P113: Lab Test | Q113: Local Ecotype | R113: 2Forb
A114: Canada Milkvetch | B114: Astragalus canadensis | C114: 0.02 - 0.15 | E114: 0 | F114: =Table1[[#This Row],[PLS seeds per sq ft]]/$E$260 ->  | G114: 60A, 63B, 64, 65E, 65W, 66, 67, 71, 72, 73E, 73W, 75, 102C, 106, 107N, 107S | H114: Loamy, Sandy | I114: Native (NE) | K114: 5 | L114: 2 | M114: 4 | N114: 270500 | O114: 6.209825528 | P114: NRCS | R114: 2Forb
A115: Canada Tick-trefoil | B115: Desmodium canadense | C115: 0.01 - 0.03 | E115: 0 | F115: =Table1[[#This Row],[PLS seeds per sq ft]]/$E$260 ->  | G115: 60A, 63B, 64, 65E, 65W, 66, 67, 71, 73E, 73W, 75, 102C, 106, 107N, 107S | H115: Loamy | I115: Native (NE) | J115: Only use on loamy soils | K115: 5 | L115: 2 | M115: 5 | N115: 88000 | O115: 2.02020202 | P115: PMN | R115: 2Forb
A116: Candle Anemone or Thimbleweed | B116: Anemone cylindrica | C116: 0.005 - 0.012 | E116: 0 | F116: =Table1[[#This Row],[PLS seeds per sq ft]]/$E$260 ->  | G116: 60A, 63B, 64, 65E, 65W, 66, 67, 71, 73E, 73W, 75, 102C, 106, 107N, 107S | H116: Loamy, Sandy | I116: Native (NE) | K116: 4 | L116: 2 | M116: 1 | N116: 416000 | O116: 9.550045914 | P116: PMN | R116: 2Forb
A117: Candle Anemone or Thimbleweed, Nebraska Source | B117: Anemone cylindrica | C117: 0.005 - 0.012 | E117: 0 | F117: =Table1[[#This Row],[PLS seeds per sq ft]]/$E$260 ->  | G117: 60A, 63B, 64, 65E, 65W, 66, 67, 71, 73E, 73W, 75, 102C, 106, 107N, 107S | H117: Loamy, Sandy | I117: Native (NE) | K117: 4 | L117: 2 | M117: 1 | N117: 416000 | O117: 9.550045914 | P117: PMN | Q117: Local Ecotype | R117: 2Forb
A118: Cardinal Flower | B118: Lobelia cardinalis | C118: 0.001 - 0.003 | E118: 0 | F118: =Table1[[#This Row],[PLS seeds per sq ft]]/$E$260 ->  | G118: 72, 73E, 73W, 75 | H118: Wet | I118: Native (NE) | J118: Only use on wet soils | K118: 6 | L118: 3 | M118: 4 | N118: 11292758 | O118: 259.2460514 | P118: NRCS | R118: 2Forb
A119: Catchfly | B119: Silene armeria | C119: 0.01 - 0.05 | E119: 0 | F119: =Table1[[#This Row],[PLS seeds per sq ft]]/$E$260 ->  | K119: -- | L119: 1 | M119: 3 | N119: 368000 | O119: 8.448117539 | R119: 2Forb
A120: Clasping Coneflower | B120: Rudbeckia amplexicaulis or Dracopis amplexicaulis | C120: 0.01 - 0.05 | E120: 0 | F120: =Table1[[#This Row],[PLS seeds per sq ft]]/$E$260 ->  | G120: 73E, 73W, 75, 106 | H120: Loamy, Sandy | I120: Native (US) | K120: 0 | L120: 1 | M120: 2 | N120: 1600000 | O120: 36.73094582 | P120: NRCS | R120: 2Forb
A121: Common Evening Primrose | B121: Oenothera biennis | C121: 0.005 - 0.04 | E121: 0 | F121: =Table1[[#This Row],[PLS seeds per sq ft]]/$E$260 ->  | G121: 60A, 63B, 64, 65E, 65W, 66, 67, 71, 72, 73E, 73W, 75, 102C, 106, 107N, 107S | H121: Loamy, Sandy | I121: Native (NE) | K121: 1 | L121: 2 | M121: 4 | N121: 1376000 | O121: 31.58861341 | P121: NRCS | R121: 2Forb
A122: Common Lespedeza | B122: Kummerowia striata | C122: -- | E122: 0 | F122: =Table1[[#This Row],[PLS seeds per sq ft]]/$E$260 ->  | K122: -- | L122: -- | M122: 3 | O122: 0 | R122: 2Forb
A123: Common Milkweed, Kansas Source | B123: Asclepias syriaca | C123: 0.03 - 0.08 | E123: 0 | F123: =Table1[[#This Row],[PLS seeds per sq ft]]/$E$260 ->  | G123: 63B, 65E, 65W, 66, 71, 73E, 73W, 75, 102C, 106, 107N, 107S | H123: Loamy, Sandy | I123: Native (NE) | J123: Native milkweed, high pollinator value | K123: 1 | L123: 2 | M123: 5 | N123: 82174 | O123: 1.886455464 | P123: Lab Test | Q123: Local Ecotype | R123: 2Forb
A124: Common Milkweed | B124: Asclepias syriaca | C124: 0.03 - 0.08 | E124: 0 | F124: =Table1[[#This Row],[PLS seeds per sq ft]]/$E$260 ->  | G124: 63B, 65E, 65W, 66, 71, 73E, 73W, 75, 102C, 106, 107N, 107S | H124: Loamy, Sandy | I124: Native (NE) | J124: Native milkweed, high pollinator value | K124: 1 | L124: 2 | M124: 5 | N124: 82174 | O124: 1.886455464 | P124: Lab Test | R124: 2Forb
A125: Common Milkweed, Nebraska Source | B125: Asclepias syriaca | C125: 0.03 - 0.08 | E125: 0 | F125: =Table1[[#This Row],[PLS seeds per sq ft]]/$E$260 ->  | G125: 63B, 65E, 65W, 66, 71, 73E, 73W, 75, 102C, 106, 107N, 107S | H125: Loamy, Sandy | I125: Native (NE) | J125: Native milkweed, high pollinator value | K125: 1 | L125: 2 | M125: 5 | N125: 82174 | O125: 1.886455464 | P125: Lab Test | Q125: Local Ecotype | R125: 2Forb
A126: Compass Plant | B126: Silphium laciniatum | C126: 0.01 - 0.02 | E126: 0 | F126: =Table1[[#This Row],[PLS seeds per sq ft]]/$E$260 ->  | G126: 75, 102C, 106, 107N, 107S | H126: Loamy | I126: Native (NE) | J126: Only use on loamy soils | K126: 5 | L126: 2 | M126: 5 | N126: 10608 | O126: 0.2435261708 | P126: IA NRCS | R126: 2Forb
A127: Compass Plant, Nebraska Source | B127: Silphium laciniatum | C127: 0.01 - 0.02 | E127: 0 | F127: =Table1[[#This Row],[PLS seeds per sq ft]]/$E$260 ->  | G127: 75, 102C, 106, 107N, 107S | H127: Loamy | I127: Native (NE) | J127: Only use on loamy soils | K127: 5 | L127: 2 | M127: 5 | N127: 10608 | O127: 0.2435261708 | P127: IA NRCS | Q127: Local Ecotype | R127: 2Forb
A128: Crimson Clover | B128: Trifolium incarnetum | C128: 0.1 - 2.0 | E128: 0 | F128: =Table1[[#This Row],[PLS seeds per sq ft]]/$E$260 ->  | G128: 106, 107N, 107S | H128: Loamy, Sandy | I128: Introduced | J128: Potentially aggressive if seeded too heavy | K128: -- | L128: 1 | M128: 5 | N128: 149760 | O128: 3.438016529 | P128: NRCS | R128: 2Forb
A129: Cudweed Sagewort or Prairie Sage | B129: Artemisia ludoviciana | C129: 0.005 - 0.01 | E129: 0 | F129: =Table1[[#This Row],[PLS seeds per sq ft]]/$E$260 ->  | G129: 60A, 63B, 64, 65E, 65W, 66, 67, 71, 72, 73E, 73W, 75, 102C, 106, 107N, 107S | H129: Loamy, Sandy | I129: Native (NE) | J129: Potentially aggressive if seeded too heavy | K129: 4 | L129: 3 | M129: 1 | N129: 4048000 | O129: 92.92929293 | P129: NRCS | R129: 2Forb
A130: Culver's Root | B130: Veronicastrum virginicum | C130: 0.001 - 0.004 | E130: 0 | F130: =Table1[[#This Row],[PLS seeds per sq ft]]/$E$260 ->  | G130: 106, 107N, 107S | H130: Wet | I130: Native (NE) | J130: Only use on wet soils | K130: 9 | L130: 3 | M130: 4 | N130: =750000*16 -> 12000000 | O130: 275.4820937 | P130: IA NRCS | R130: 2Forb
A131: Cup Plant | B131: Silphium perfoliatum | C131: 0.01 - 0.05 | E131: 0 | F131: =Table1[[#This Row],[PLS seeds per sq ft]]/$E$260 ->  | G131: 75, 102C, 106, 107N, 107S | H131: Loamy, Wet | I131: Native (NE) | K131: 4 | L131: 2 | M131: 5 | N131: 64085 | O131: 1.471189164 | P131: Lab Test | R131: 2Forb
A132: Curly Cup Gumweed, Nebraska Source | B132: Grindelia squarrosa | C132: 0.005 - 0.02 | E132: 0 | F132: =Table1[[#This Row],[PLS seeds per sq ft]]/$E$260 ->  | G132: 60A, 63B, 64, 65E, 65W, 66, 67, 71, 72, 73E, 73W, 75, 102C, 106, 107N, 107S | H132: Loamy, Sandy | I132: Native (NE) | K132: -- | L132: 2 | M132: 3 | N132: 567020 | O132: 13.01698806 | P132: Lab Test | Q132: Local Ecotype | R132: 2Forb
A133: Cutleaf Coneflower, Colorado Source | B133: Rudbeckia laciniata | C133: 0.01 - 0.03 | E133: 0 | F133: =Table1[[#This Row],[PLS seeds per sq ft]]/$E$260 ->  | G133: 63B, 65E, 65W, 66, 71, 73E, 73W, 75, 102C, 106, 107N, 107S | H133: Wet | I133: Native (NE) | J133: Only use on wet soils | K133: 4 | L133: 3 | M133: 4 | N133: 406451 | O133: 9.330831038 | P133: Lab Test | Q133: Local Ecotype | R133: 2Forb
A134: Deer Vetch, Nebraska Source | B134: Lotus unifoliolatus | C134: 0.01 - 0.04 | E134: 0 | F134: =Table1[[#This Row],[PLS seeds per sq ft]]/$E$260 ->  | G134: 60A, 63B, 64, 65E, 65W, 66, 67, 71, 73E, 73W, 75, 102C, 106, 107N, 107S | H134: Loamy, Sandy | I134: Native (NE) | K134: 3 | L134: 3 | M134: 4 | N134: 79551 | O134: 1.826239669 | P134: Lab Test | Q134: Local Ecotype | R134: 2Forb
A135: Dense Blazing Star | B135: Liatris spicata | C135: 0.02 - 0.06 | E135: 0 | F135: =Table1[[#This Row],[PLS seeds per sq ft]]/$E$260 ->  | G135: 60A, 63B, 64, 65E, 65W, 66, 67, 71, 72, 73E, 73W, 75, 102C, 106, 107N, 107S | H135: Loamy, Wet | I135: Native (US) | K135: -- | L135: 2 | M135: 5 | N135: 100000 | O135: 2.295684114 | P135: Ernst | R135: 2Forb
A136: Deptford Pink, Nebraska Source | B136: Dianthus armeria | C136: 0.002 - 0.005 | E136: =D136*O136 -> 0 | F136: =Table1[[#This Row],[PLS seeds per sq ft]]/$E$260 ->  | G136: 60A, 63B, 64, 65E, 65W, 66, 67, 71, 72, 73E, 73W, 75, 102C, 106, 107N, 107S | H136: Loamy | I136: Introduced | J136: Introduced non-aggressive species, only use on loamy soils | K136: 0 | L136: 2 | M136: 5 | N136: 2440860 | O136: 56.03443526 | P136: Lab Test | Q136: Local Ecotype | R136: 2Forb
A137: Dotted Gayfeather | B137: Liatris punctata | C137: 0.01 - 0.02 | E137: 0 | F137: =Table1[[#This Row],[PLS seeds per sq ft]]/$E$260 ->  | G137: 63B, 65E, 65W, 66, 71, 72, 73E, 73W, 75, 102C, 106, 107N, 107S | H137: Loamy, Sandy | I137: Native (NE) | J137: High pollinator value, important fall bloomer | K137: 5 | L137: 3 | M137: 4 | N137: 137910 | O137: 3.165977961 | P137: Lab Test | R137: 2Forb
A138: Dotted Mint | B138: Monarda punctata | C138: 0.008 - 0.015 | E138: 0 | F138: =Table1[[#This Row],[PLS seeds per sq ft]]/$E$260 ->  | G138: 65E, 65W, 102C | H138: Sandy, Loamy | I138: Native (US) | J138: Introduced non-aggressive species | K138: -- | L138: 2 | M138: 3 | N138: 1472000 | O138: =N138/43560 -> 33.79247016 | P138: Ernst | R138: 2Forb
A139: Engelmann's Daisy | B139: Engelmannia pinnatifida | C139: 0.05 - 0.1 | E139: 0 | F139: =Table1[[#This Row],[PLS seeds per sq ft]]/$E$260 ->  | G139: 60A, 63B, 64, 65E, 65W, 66, 67, 71, 72, 73E, 73W, 75, 102C, 106, 107N, 107S | H139: Loamy, Sandy | I139: Native (NE) | K139: -- | L139: 1 | M139: 3 | N139: 58000 | O139: 1.331496786 | P139: NRCS | R139: 2Forb
A140: Entire-leaved Rosinweed | B140: Silphium integrifolium | C140: 0.01 - 0.04 | E140: 0 | F140: =Table1[[#This Row],[PLS seeds per sq ft]]/$E$260 ->  | G140: 71, 73E, 73W, 75, 102C, 106, 107N, 107S | H140: Loamy, Sandy | I140: Native (NE) | J140: Potentially aggressive if seeded too heavy | K140: 4 | L140: 2 | M140: 5 | N140: 34393 | O140: 0.7895546373 | P140: Lab Test | R140: 2Forb
A141: False Aster | B141: Boltonia asteroides | E141: 0 | F141: =Table1[[#This Row],[PLS seeds per sq ft]]/$E$260 ->  | K141: 3 | L141: 3 | M141: 4 | O141: 0 | R141: 2Forb
A142: False Boneset | B142: Eupatorium kihnia | C142: 0.005 - 0.01 | E142: 0 | F142: =Table1[[#This Row],[PLS seeds per sq ft]]/$E$260 ->  | G142: 60A, 63B, 64, 65E, 65W, 66, 67, 71, 72, 73E, 73W, 75, 102C, 106, 107N, 107S | H142: Loamy, Sandy | I142: Native (NE) | K142: 3 | L142: 3 | M142: 1 | N142: 523041 | O142: 12.00736915 | P142: Lab Test | R142: 2Forb
A143: False or Oxeye Sunflower | B143: Heliopsis helianthoides | C143: 0.03 - 0.09 | E143: 0 | F143: =Table1[[#This Row],[PLS seeds per sq ft]]/$E$260 ->  | G143: 63B, 65E, 65W, 66, 71, 72, 73E, 73W, 75, 102C, 106, 107N, 107S | H143: Loamy, Sandy | I143: Native (NE) | J143: Potentially aggressive if seeded too heavy | K143: 4 | L143: 2 | M143: 5 | N143: 103904 | O143: 2.385307622 | P143: IA NRCS | R143: 2Forb
A144: Field Snake Cotton, Nebraska Source | B144: Froelichia floridana | C144: 0.01 - 0.02 | E144: 0 | F144: =Table1[[#This Row],[PLS seeds per sq ft]]/$E$260 ->  | G144: 63B, 65E, 65W, 66, 71, 72, 73E, 73W, 75, 102C | H144: Sandy | I144: Native (NE) | J144: Only use on sandy soils | K144: -- | L144: 2 | M144: 1 | N144: 130946 | O144: 3.00610652 | P144: Lab Test | Q144: Local Ecotype | R144: 2Forb
A145: Flat Top Aster | B145: Aster umbellatus | E145: 0 | F145: =Table1[[#This Row],[PLS seeds per sq ft]]/$E$260 ->  | K145: -- | L145: 3 | M145: 4 | O145: 0 | R145: 2Forb
A146: Foxglove Beardstongue | B146: Penstemon digitalis | C146: 0.01 - 0.03 | E146: 0 | F146: =Table1[[#This Row],[PLS seeds per sq ft]]/$E$260 ->  | G146: 63B, 75, 102C, 106, 107N, 107S, | H146: Loamy | I146: Native (NE) | J146: High pollinator value, important spring bloomer, only use on loamy soils | K146: 6 | L146: 1 | M146: 5 | N146: 400000 | O146: 9.182736455 | P146: NRCS | R146: 2Forb
A147: Foxglove Beardstongue, Nebraska Source | B147: Penstemon digitalis | C147: 0.01 - 0.03 | E147: 0 | F147: =Table1[[#This Row],[PLS seeds per sq ft]]/$E$260 ->  | G147: 63B, 75, 102C, 106, 107N, 107S, | H147: Loamy | I147: Native (NE) | J147: High pollinator value, important spring bloomer, only use on loamy soils | K147: 6 | L147: 1 | M147: 5 | N147: 400000 | O147: 9.182736455 | P147: NRCS | Q147: Local Ecotype | R147: 2Forb
A148: Fringed Sagewort | B148: Artemisia frigida | C148: 0.008 - 0.015 | E148: 0 | F148: =Table1[[#This Row],[PLS seeds per sq ft]]/$E$260 ->  | G148: 60A, 63B, 64, 65E, 65W, 66, 67, 71, 72, 73E, 73W | H148: Loamy, Sandy | I148: Native (NE) | K148: -- | L148: 3 | M148: 1 | N148: 4536000 | O148: 104.1322314 | P148: NRCS | R148: 2Forb
A149: Golden Alexander | B149: Ziziz aurea | C149: 0.02 - 0.04 | E149: 0 | F149: =Table1[[#This Row],[PLS seeds per sq ft]]/$E$260 ->  | G149: 102C, 106, 107N, 107S | H149: Loamy, Wet | I149: Native (NE) | J149: High pollinator value, important spring bloomer | K149: 6 | L149: 1 | M149: 5 | N149: 176000 | O149: 4.04040404 | P149: IA NRCS | R149: 2Forb
A150: Golden Alexander, Nebraska Source | B150: Ziziz aurea | C150: 0.02 - 0.04 | E150: 0 | F150: =Table1[[#This Row],[PLS seeds per sq ft]]/$E$260 ->  | G150: 102C, 106, 107N, 107S | H150: Loamy, Wet | I150: Native (NE) | J150: High pollinator value, important spring bloomer | K150: 6 | L150: 1 | M150: 5 | N150: 161309 | O150: 3.703145087 | P150: IA NRCS | Q150: Local Ecotype | R150: 2Forb
A151: Grass Leafed Goldenrod | B151: Solidago graminifolia | C151: 0.001 - 0.004 | E151: 0 | F151: =Table1[[#This Row],[PLS seeds per sq ft]]/$E$260 ->  | K151: -- | L151: 3 | M151: 4 | N151: 5600000 | O151: 128.5583104 | P151: Lab Test | R151: 2Forb
A152: Gray Goldenrod | B152: Solidago nemoralis | C152: 0.001 - 0.005 | E152: 0 | F152: =Table1[[#This Row],[PLS seeds per sq ft]]/$E$260 ->  | K152: -- | L152: 3 | M152: 4 | N152: 4800000 | O152: 110.1928375 | R152: 2Forb
A153: Grayhead Coneflower | B153: Ratibida pinnata | C153: 0.01 - 0.1 | E153: 0 | F153: =Table1[[#This Row],[PLS seeds per sq ft]]/$E$260 ->  | G153: 71, 75, 102C, 106 | H153: Loamy, Sandy, Wet | I153: Native (NE) | J153: Potentially aggressive if seeded too heavy | K153: 3 | L153: 2 | M153: 4 | N153: 427500 | O153: 9.814049587 | P153: NRCS | R153: 2Forb
A154: Hairy Vetch | B154: Vicia villosa | C154: 0.5 - 4.0 | E154: 0 | F154: =Table1[[#This Row],[PLS seeds per sq ft]]/$E$260 ->  | K154: -- | L154: 2 | M154: 4 | N154: 16320 | O154: 0.3746556474 | P154: NRCS | R154: 2Forb
A155: Heath Aster | B155: Aster ericoides | C155: 0.001 - 0.004 | E155: 0 | F155: =Table1[[#This Row],[PLS seeds per sq ft]]/$E$260 ->  | G155: 60A, 63B, 64, 65E, 65W, 66, 67, 71, 72, 73E, 73W, 75, 102C, 106, 107N, 107S | H155: Sandy, Loamy | I155: Native (NE) | K155: 3 | L155: 3 | M155: 5 | N155: 5044444 | O155: 115.8044995 | P155: Lab Test | R155: 2Forb
A156: Hoary Vervain | B156: Verbena stricta | C156: 0.01 - 0.06 | E156: 0 | F156: =Table1[[#This Row],[PLS seeds per sq ft]]/$E$260 ->  | G156: 60A, 63B, 64, 65E, 65W, 66, 67, 71, 72, 73E, 73W, 75, 102C, 106, 107N, 107S | H156: Loamy, Sandy | I156: Native (NE) | J156: High pollinator value | K156: 8 | L156: 2 | M156: 5 | N156: 586046 | O156: 13.45376492 | P156: Lab Test | R156: 2Forb
A157: Hoary Vervain, Nebraska Source | B157: Verbena stricta | C157: 0.01 - 0.06 | E157: 0 | F157: =Table1[[#This Row],[PLS seeds per sq ft]]/$E$260 ->  | G157: 60A, 63B, 64, 65E, 65W, 66, 67, 71, 72, 73E, 73W, 75, 102C, 106, 107N, 107S | H157: Loamy, Sandy | I157: Native (NE) | J157: High pollinator value | K157: 8 | L157: 2 | M157: 5 | N157: 586046 | O157: 13.45376492 | P157: Lab Test | Q157: Local Ecotype | R157: 2Forb
A158: Illinois Bundleflower | B158: Desmanthus illinoensis | C158: 0.05 - 0.25 | E158: 0 | F158: =Table1[[#This Row],[PLS seeds per sq ft]]/$E$260 ->  | G158: 63, 66, 71, 73E, 73W, 75, 102C, 106 | H158: Loamy, Sandy | I158: Native (NE) | K158: 5 | L158: 2 | M158: 5 | N158: 85000 | O158: 1.951331497 | P158: NRCS | R158: 2Forb
A159: Illinois Tickclover | B159: Desmodium illinoense | C159: 0.01 - 0.02 | E159: 0 | F159: =Table1[[#This Row],[PLS seeds per sq ft]]/$E$260 ->  | G159: 71, 75, 102C, 106, 107N, 107S | H159: Loamy | I159: Native (NE) | J159: Only use on loamy soils | K159: 6 | L159: 2 | M159: 4 | N159: 68800 | O159: 1.57943067 | P159: PMN | R159: 2Forb
A160: Ironweed | B160: Vernonia fasciculata | C160: 0.02 - 0.06 | E160: 0 | F160: =Table1[[#This Row],[PLS seeds per sq ft]]/$E$260 ->  | K160: 4 | L160: 2 | M160: 5 | N160: 384000 | O160: 8.815426997 | R160: 2Forb
A161: Jerusalem Artichoke | B161: Helianthus tuberosus | C161: 0.015 - 0.03 | E161: 0 | F161: =Table1[[#This Row],[PLS seeds per sq ft]]/$E$260 ->  | G161: 71, 73E, 73W, 75, 102C, 106, 107N, 107S | H161: Loamy, Wet | I161: Native (NE) | J161: Potentially aggressive if seeded too heavy | K161: 4 | L161: 3 | M161: 4 | N161: 119411 | O161: 2.741299357 | P161: NRCS | R161: 2Forb
A162: Joe-pye-weed | B162: Eupatorium fistulosum | C162: 0.005 - 0.01 | E162: 0 | F162: =Table1[[#This Row],[PLS seeds per sq ft]]/$E$260 ->  | K162: -- | L162: 3 | M162: 4 | N162: 1360000 | O162: 31.22130395 | R162: 2Forb
A163: Ladino or White Clover | B163: Trifolium repens | C163: 0.1 - 0.5 | E163: 0 | F163: =Table1[[#This Row],[PLS seeds per sq ft]]/$E$260 ->  | G163: 60A, 63B, 64, 65E, 65W, 66, 67, 71, 72, 73E, 73W, 75, 102C, 106, 107N, 107S | H163: Loamy, Sandy | I163: Introduced | J163: Potentially aggressive if seeded too heavy | K163: -- | L163: 2 | M163: 5 | N163: 711867 | O163: 16.34221763 | P163: NRCS | R163: 2Forb
A164: Lanceleaf Coreopsis | B164: Coreopsis lanceolata | C164: 0.05 - 0.1 | E164: 0 | F164: =Table1[[#This Row],[PLS seeds per sq ft]]/$E$260 ->  | G164: 75, 102C, 106, 107N, 107S | H164: Loamy, Sandy | I164: Native (US) | J164: Introduced to Nebraska, non-aggressive | K164: -- | L164: 2 | M164: 3 | N164: 221000 | O164: 5.073461892 | P164: NRCS | R164: 2Forb
A165: Lanceleaf Gayfeather, Nebraska Source | B165: Liatris lancifolia | C165: 0.01 - 0.05 | E165: 0 | F165: =Table1[[#This Row],[PLS seeds per sq ft]]/$E$260 ->  | K165: 8 | L165: 3 | M165: 4 | N165: 375497 | O165: 8.620224977 | Q165: Local Ecotype | R165: 2Forb
A166: Late or Giant Goldenrod, Nebraska Source | B166: Solidago gigantea | C166: 0.001 - 0.005 | E166: 0 | F166: =Table1[[#This Row],[PLS seeds per sq ft]]/$E$260 ->  | G166: 60A, 63B, 64, 65E, 65W, 66, 67, 71, 72, 73E, 73W, 75, 102C, 106, 107N, 107S | H166: Loamy, Sandy | I166: Native (NE) | J166: High pollinator value, important fall bloomer, potentially aggressive if seeded too heavy | K166: 3 | L166: 3 | M166: 5 | N166: 7566667 | O166: 173.7067723 | P166: Lab Test | Q166: Local Ecotype | R166: 2Forb
A167: Leadplant | B167: Amorpha canescens | C167: 0.025 - 0.06 | E167: 0 | F167: =Table1[[#This Row],[PLS seeds per sq ft]]/$E$260 ->  | G167: 60A, 63B, 64, 65E, 65W, 66, 67, 71, 72, 73E, 73W, 75, 102C, 106, 107N, 107S | H167: Loamy, Sandy | I167: Native (NE) | J167: Indicator of healthy grazing system, heavily sought out by cattle | K167: 6 | L167: 2 | M167: 5 | N167: 195333 | O167: 4.48422865 | P167: NRCS | R167: 2Forb
A168: Leadplant, Nebraska Source | B168: Amorpha canescens | C168: 0.025 - 0.06 | E168: 0 | F168: =Table1[[#This Row],[PLS seeds per sq ft]]/$E$260 ->  | G168: 60A, 63B, 64, 65E, 65W, 66, 67, 71, 72, 73E, 73W, 75, 102C, 106, 107N, 107S | H168: Loamy, Sandy | I168: Native (NE) | J168: Indicator of healthy grazing system, heavily sought out by cattle | K168: 0 | L168: 0 | M168: 5 | N168: 195334 | O168: 4.484251607 | P168: NRCS | Q168: Local Ecotype | R168: 2Forb
A169: Maryland Senna | B169: Senna marilandica | C169: 0.05 - 0.08 | E169: 0 | F169: =Table1[[#This Row],[PLS seeds per sq ft]]/$E$260 ->  | G169: 75, 106, 107N, 107S | H169: Loamy, Sandy | I169: Native (NE) | J169: Potentially aggressive if seeded too heavy | K169: 5 | L169: 2 | M169: 3 | N169: 20500 | O169: 0.4706152433 | P169: Lab Test | R169: 2Forb
A170: Maximillian Sunflower | B170: Helianthus maximiliani | C170: 0.01 - 0.03 | E170: 0 | F170: =Table1[[#This Row],[PLS seeds per sq ft]]/$E$260 ->  | G170: 60A, 63B, 64, 65E, 65W, 66, 67, 71, 72, 73E, 73W, 75, 102C, 106, 107N, 107S | H170: Loamy, Sandy | I170: Native (NE) | J170: High pollinator value, important fall bloomer, potentially aggressive if seeded too heavy | K170: 4 | L170: 3 | M170: 5 | N170: 196360 | O170: 4.507805326 | P170: NRCS | R170: 2Forb
A171: Maximillian Sunflower, Kansas Source | B171: Helianthus maximiliani | C171: 0.01 - 0.03 | E171: 0 | F171: =Table1[[#This Row],[PLS seeds per sq ft]]/$E$260 ->  | G171: 60A, 63B, 64, 65E, 65W, 66, 67, 71, 72, 73E, 73W, 75, 102C, 106, 107N, 107S | H171: Loamy, Sandy | I171: Native (NE) | J171: High pollinator value, important fall bloomer, potentially aggressive if seeded too heavy | K171: 4 | L171: 3 | M171: 5 | N171: 196360 | O171: 4.507805326 | P171: NRCS | R171: 2Forb
A172: Mexican Hat | B172: Ratibida peduncularis | C172: 0.02 - 0.08 | E172: 0 | F172: =Table1[[#This Row],[PLS seeds per sq ft]]/$E$260 ->  | G172: 60A, 63B, 64, 65E, 65W, 66, 67, 71, 72, 73E, 73W, 75, 102C, 106, 107N, 107S | H172: Loamy, Sandy | I172: Native (NE) | J172: Cultivar, non-aggressive | K172: -- | L172: 2 | M172: 2 | N172: 737104 | O172: 16.92157943 | P172: NRCS | R172: 2Forb
A173: Missouri Evening Primrose | B173: Oenothera macrocarpa | C173: 0.01 - 0.04 | E173: 0 | F173: =Table1[[#This Row],[PLS seeds per sq ft]]/$E$260 ->  | G173: 73E, 73W, 75, 106, 107N, 107S | H173: Loamy, Sandy | I173: Native (NE) | K173: -- | L173: 2 | M173: 4 | N173: 75200 | O173: 1.726354454 | P173: PMN | R173: 2Forb
A174: Narrow-leaf Sunflower | B174: Helianthus angustifolious | E174: 0 | F174: =Table1[[#This Row],[PLS seeds per sq ft]]/$E$260 ->  | K174: -- | L174: 3 | M174: 4 | O174: 0 | R174: 2Forb
A175: New England Aster | B175: Aster novae-angliae | C175: 0.005 - 0.01 | E175: 0 | F175: =Table1[[#This Row],[PLS seeds per sq ft]]/$E$260 ->  | G175: 75, 102C, 106 | H175: Loamy | I175: Native (NE) | J175: High pollinator value, important fall bloomer, only use on loamy soils | K175: 4 | L175: 3 | M175: 5 | N175: 1056000 | O175: 24.24242424 | P175: PMN | R175: 2Forb
A176: New Jersey Tea | B176: Ceanothus americanus | C176: 0.01 - 0.04 | E176: 0 | F176: =Table1[[#This Row],[PLS seeds per sq ft]]/$E$260 ->  | G176: 63B, 65E, 65W, 66, 71, 73E, 73W, 75, 102C, 106, 107N, 107S | H176: Loamy | I176: Native (NE) | J176: Only use on loamy soils | K176: 6 | L176: 2 | M176: 4 | N176: 112000 | O176: 2.571166208 | P176: NRCS | R176: 2Forb
A177: Nodding Bur Marigold | B177: Bidens cernua | C177: 0.02 - 0.05 | E177: 0 | F177: =Table1[[#This Row],[PLS seeds per sq ft]]/$E$260 ->  | G177: 60A, 63B, 64, 65E, 65W, 66, 67, 71, 72, 73E, 73W, 75, 102C, 106, 107N, 107S | H177: Wet | I177: Native (NE) | J177: Only use on wet soils | K177: 3 | L177: 2 | M177: 3 | N177: 130000 | O177: 2.984389348 | P177: Ernst | R177: 2Forb
A178: Nodding Pink Onion | B178: Allium cemuum | C178: 0.02 - 0.04 | E178: 0 | F178: =Table1[[#This Row],[PLS seeds per sq ft]]/$E$260 ->  | K178: -- | L178: 2 | M178: 3 | N178: 123200 | O178: 2.828282828 | P178: Ernst | R178: 2Forb
A179: Obedience Plant | B179: Physostegia virginiana | C179: 0.01 - 0.03 | E179: 0 | F179: =Table1[[#This Row],[PLS seeds per sq ft]]/$E$260 ->  | G179: 63B, 71, 75, 102C, 106, 107N, 107S | H179: Wet | I179: Native (NE) | J179: Only use on wet soils | K179: -- | L179: 3 | M179: 4 | N179: 176000 | O179: 4.04040404 | P179: PMN | R179: 2Forb
A180: Ohio Spiderwort | B180: Tradescantia ohiensis | C180: 0.01 - 0.03 | E180: 0 | F180: =Table1[[#This Row],[PLS seeds per sq ft]]/$E$260 ->  | G180: 106, 107N, 107S | H180: Loamy, Wet | I180: Native (NE) | K180: 5 | L180: 1 | M180: 4 | N180: 128000 | O180: 2.938475666 | P180: IA NRCS | R180: 2Forb
A181: Pale Purple Coneflower | B181: Echinacea pallida | C181: 0.01 - 0.04 | E181: 0 | F181: =Table1[[#This Row],[PLS seeds per sq ft]]/$E$260 ->  | G181: 75, 102C, 106, 107N, 107S | H181: Loamy | I181: Native (NE) | J181: Only use on loamy soils | K181: -- | L181: 2 | M181: 4 | N181: 106000 | O181: 2.433425161 | P181: NRCS | R181: 2Forb
A182: Pennsylvania Smartweed | B182: Polygonum pennsylvanicum | E182: 0 | F182: =Table1[[#This Row],[PLS seeds per sq ft]]/$E$260 ->  | O182: 0 | R182: 2Forb
A183: Phlox | B183: Phlox drummondi | C183: 0.025 - 0.04 | E183: 0 | F183: =Table1[[#This Row],[PLS seeds per sq ft]]/$E$260 ->  | K183: -- | L183: 2 | M183: 4 | N183: 304000 | O183: 6.978879706 | P183: Ernst | R183: 2Forb
A184: Plains Coreopsis | B184: Coreopsis tinctoria | C184: 0.01 - 0.05 | E184: 0 | F184: =Table1[[#This Row],[PLS seeds per sq ft]]/$E$260 ->  | G184: 63B, 65E, 65W, 66, 71, 73E, 73W, 75, 102C, 106, 107N, 107S | H184: Wet | I184: Native (NE) | J184: Use sparingly. Is inexpensive to plant, but provides little pollinator value. Only use on wet soils | K184: 1 | L184: 2 | M184: 2 | N184: 3222222 | O184: 73.97203857 | P184: NRCS | R184: 2Forb
A185: Plains Coreopsis, Nebraska Source | B185: Coreopsis tinctoria | C185: 0.01 - 0.05 | E185: 0 | F185: =Table1[[#This Row],[PLS seeds per sq ft]]/$E$260 ->  | G185: 63B, 65E, 65W, 66, 71, 73E, 73W, 75, 102C, 106, 107N, 107S | H185: Wet | I185: Native (NE) | J185: Use sparingly. Is inexpensive to plant, but provides little pollinator value. Only use on wet soils | K185: 1 | L185: 2 | M185: 2 | N185: 3222222 | O185: 73.97203857 | P185: NRCS | Q185: Local Ecotype | R185: 2Forb
A186: Plains False or Blue Wild Indigo | B186: Baptisia australis | C186: 0.01 - 0.05 | E186: 0 | F186: =Table1[[#This Row],[PLS seeds per sq ft]]/$E$260 ->  | G186: 75, 106 | H186: Loamy | I186: Native (NE) | J186: Only use on loamy soils | K186: -- | L186: 2 | M186: 4 | N186: 24000 | O186: 0.5509641873 | P186: IA NRCS | R186: 2Forb
A187: Plains Sunflower, Nebraska Source | B187: Helianthus petiolaris | C187: 0.01 - 0.05 | E187: 0 | F187: =Table1[[#This Row],[PLS seeds per sq ft]]/$E$260 ->  | G187: 60A, 63B, 64, 65E, 65W, 66, 67, 71, 72, 73E, 73W, 75, 102C, 106, 107N, 107S | H187: Sandy | I187: Native (NE) | J187: High pollinator value, important fall bloomer, potentially aggressive if seeded too heavy, only use on sandy soils | K187: 2 | L187: 3 | M187: 5 | N187: 114314 | O187: 2.624288338 | P187: Lab Test | Q187: Local Ecotype | R187: 2Forb
A188: Prairie Aster | B188: Aster tanacetifolius | C188: 0.015 - 0.05 | E188: 0 | F188: =Table1[[#This Row],[PLS seeds per sq ft]]/$E$260 ->  | G188: 60A, 64, 65W, 67, 72 | H188: Loamy | I188: Native (NE) | J188: Only use on loamy soils | K188: -- | L188: 3 | M188: 5 | N188: 408240 | O188: 9.371900826 | P188: NRCS | R188: 2Forb
A189: Prairie Dock | B189: Silphium terebinthinaceum | C189: 0.01 - 0.03 | E189: 0 | F189: =Table1[[#This Row],[PLS seeds per sq ft]]/$E$260 ->  | K189: -- | L189: 2 | M189: 4 | N189: 16000 | O189: 0.3673094582 | P189: PMN | R189: 2Forb
A190: Prairie Sainfoin | B190: Onobrychis viciifolia | C190: 0.5 - 1.5 | E190: 0 | F190: =Table1[[#This Row],[PLS seeds per sq ft]]/$E$260 ->  | K190: -- | L190: -- | M190: 5 | N190: 30240 | O190: 0.694214876 | P190: NRCS | R190: 2Forb
A191: Purple Coneflower | B191: Echinacea purpurea | C191: 0.05 - 0.2 | E191: 0 | F191: =Table1[[#This Row],[PLS seeds per sq ft]]/$E$260 ->  | G191: 75, 102C, 106, 107N, 107S | H191: Loamy | I191: Native (NE) | J191: Native to the far Eastern part of the state, only use on loamy soils | K191: -- | L191: 2 | M191: 4 | N191: 115664 | O191: 2.655280073 | P191: NRCS | R191: 2Forb
A192: Purple Meadow Rue | B192: Thalictrum dasycarpum | C192: 0.03 - 0.05 | E192: 0 | F192: =Table1[[#This Row],[PLS seeds per sq ft]]/$E$260 ->  | K192: -- | L192: 1 | M192: 3 | N192: 176000 | O192: 4.04040404 | R192: 2Forb
A193: Purple Poppymallow | B193: Callirhoe involucrata | C193: 0.01 - 0.04 | E193: 0 | F193: =Table1[[#This Row],[PLS seeds per sq ft]]/$E$260 ->  | G193: 71, 75 | H193: Loamy, Sandy | I193: Native (NE) | K193: 2 | L193: 2 | M193: 4 | N193: 122150 | O193: 2.804178145 | P193: Lab Test | R193: 2Forb
A194: Purple Prairieclover | B194: Dalea purpurea | C194: 0.04 - 0.15 | E194: 0 | F194: =Table1[[#This Row],[PLS seeds per sq ft]]/$E$260 ->  | G194: 60A, 63B, 64, 65E, 65W, 66, 67, 71, 72, 73E, 73W, 75, 102C, 106, 107N, 107S | H194: Loamy, Sandy | I194: Native (NE) | J194: Native legume, heavily sought out by cattle | K194: 6 | L194: 2 | M194: 5 | N194: 317000 | O194: 7.277318641 | P194: NRCS | R194: 2Forb
A195: Purple Prairieclover, Nebraska Source | B195: Dalea purpurea | C195: 0.04 - 0.15 | E195: 0 | F195: =Table1[[#This Row],[PLS seeds per sq ft]]/$E$260 ->  | G195: 60A, 63B, 64, 65E, 65W, 66, 67, 71, 72, 73E, 73W, 75, 102C, 106, 107N, 107S | H195: Loamy, Sandy | I195: Native (NE) | J195: Native legume, heavily sought out by cattle | K195: 6 | L195: 2 | M195: 5 | N195: 317000 | O195: 7.277318641 | P195: NRCS | Q195: Local Ecotype | R195: 2Forb
A196: Ragweed, Common, Nebraska Source | B196: Ambrosia artemisiifolia | C196: 0.1 - 0.5 | E196: 0 | F196: =Table1[[#This Row],[PLS seeds per sq ft]]/$E$260 ->  | K196: 0 | L196: 0 | M196: 0 | N196: 220837 | O196: 5.069719927 | P196: Lab Test | Q196: Local Ecotype | R196: 2Forb
A197: Ragweed, Giant, Nebraska Source | B197: Ambrosia trifida | C197: 0.2 - 1.5 | E197: 0 | F197: =Table1[[#This Row],[PLS seeds per sq ft]]/$E$260 ->  | K197: 0 | L197: 0 | M197: 0 | N197: 39478 | O197: 0.9062901745 | P197: Lab Test | Q197: Local Ecotype | R197: 2Forb
A198: Ragweed, Western, Nebraska Source | B198: Ambrosia psilostachya | C198: 0.1 - 1.0 | E198: 0 | F198: =Table1[[#This Row],[PLS seeds per sq ft]]/$E$260 ->  | K198: 0 | L198: 0 | M198: 0 | N198: 194400 | O198: 4.462809917 | P198: Lab Test | Q198: Local Ecotype | R198: 2Forb
A199: Rape | B199: Brassica rapa | C199: 0.1 - 1.0 | E199: 0 | F199: =Table1[[#This Row],[PLS seeds per sq ft]]/$E$260 ->  | K199: 0 | L199: -- | M199: 2 | N199: 156960 | O199: 3.603305785 | R199: 2Forb
A200: Rattlesnake Master | B200: Eryngium yuccifulium | C200: 0.01 - 0.04 | E200: =D200*O200 -> 0 | F200: =Table1[[#This Row],[PLS seeds per sq ft]]/$E$260 ->  | G200: 106, 107N, 107S | H200: Loamy | I200: Native (NE) | J200: Only use on loamy soils | K200: 9 | L200: 3 | M200: 3 | N200: 177776 | O200: 4.08117539 | P200: IA NRCS | R200: 2Forb
A201: Rayless Greenthread | B201: Thelesperma magapotamicum | C201: 0.01 - 0.02 | E201: 0 | F201: =Table1[[#This Row],[PLS seeds per sq ft]]/$E$260 ->  | K201: 4 | L201: 2 | M201: 2 | N201: 232618 | O201: 5.340174472 | R201: 2Forb
... 544 more rows

Sheet Macro Information
A2: Show All
A3: This button clears all of the filters in the table. Click here to view all of the available species.
A5: Grasses
A6: Shows all grass species available.
A8: Wildflower/Forb/Legume
A9: Shows all wildflower/forb/legume species available.
A11: Filler
A12: Shows all low germination species available.
A14: Local Ecotype
A15: Shows all Nebraska local ecotype species available.
A17: Mixture
A18: Filters out unused species. You will only see the mixture that you have entered
A20: Clear PLS per acre
A21: Clears the PLS lbs per acre values you have entered. Be careful, once you clear the values you can't undo the action.

Sheet Information Sources
A1: The sources for seed information in this file came from the following locations:
A3: 1. The Nebraska NRCS State Office.
A4: 2. US Department of Agriculture Plants Database: http://plants.usda.gov/ | B4: NRCS
A5: 3. The Iowa NRCS State Office. | B5: IA NRCS
A6: 4. Restoring the Tallgrass Prairie. 1994. Shirley Shirley. | B6: RTP
A7: 5. Prairie Moon Nursery, 2014 Catalog & Cultural Guide. | B7: PMN
A8: 6. Ernst Seed Company | B8: Ernst
A9: 6. The Flora of Nebraska. Keys, descriptions and distributional maps of all native and introduced species that grow outside of cultivation. 2006. Robert B. Kaul, David M. Sutherland and Steven B. Rolfsmeier.
A10: 7. Field guide to wildflowers of Nebraska and the Great Plains. 1990. Jon Farrar.
A11: 8. A guide to Prairie and Wetland restoration in eastern Nebraska. 2003. Gerry Steinauer.
A12: 9. Hulsey Seed Laboratory, Inc., P.O. Box 132, Decatur, GA 30031-0132. | B12: Lab Test
